bitfinex-derivatives/quotes_SOLF0:USTF0_20251117
["timestamp","ask_amount","ask_price","bid_price","bid_amount"]
[1763388471761,3.31209937,137.47,137.45,0.04918584]
[1763388472363,0.05209937,137.47,137.45,0.04918584]
[1763388472764,0.05209937,137.47,137.45,1.70918584]
[1763388473166,10.32576454,137.55,137.45,1.70918584]
[1763388473468,3.26,137.55,137.45,1.66]
[1763388474069,0.05437349,137.51,137.49,0.04816106]
[1763388474960,87.54,137.6,137.49,0.04816106]
[1763388474961,10.32576454,137.6,137.49,1.70816106]
[1763388475166,3.26,137.6,137.5,1.66]
[1763388476169,0.05308198,137.56,137.54,0.05390396]
[1763388478373,0.05308198,137.56,137.5,1.66]
[1763388478374,4.71,137.55,137.45,1.65]
[1763388478665,4.71,137.55,137.33,13.1184]
[1763388478666,3.25,137.52,137.4,1.65]
[1763388479265,3.25,137.49,137.4,1.65]
[1763388479465,0.04875203,137.46,137.43,0.05560059]
[1763388479658,3.29875203,137.46,137.43,0.05560059]
[1763388480278,0.04875203,137.46,137.43,0.05560059]
[1763388480571,3.29875203,137.46,137.43,0.05560059]
[1763388480960,3.29875203,137.46,137.33,7.06576454]
[1763388481162,3.25,137.4,137.28,1.65]
[1763388481372,3.25,137.37,137.28,1.65]
[1763388481967,3.30206441,137.34,137.31,0.05554385]
[1763388482561,3.30206441,137.34,137.24,1.65]
[1763388482765,3.25,137.34,137.24,1.65]
[1763388483167,3.25,137.31,137.2,1.65]
[1763388483578,3.29933915,137.27,137.24,0.05103822]
[1763388484978,3.25,137.26,137.12,89.08]
[1763388485277,3.25,137.26,137.13,1.7]
[1763388485984,0.05303728,137.21,137.18,0.04756282]
[1763388486180,0.05303728,137.21,137.18,1.74756282]
[1763388486378,48.05,137.43,137.18,1.74756282]
[1763388486379,22.29027102,137.34,137.2,1.7]
[1763388486681,3.25,137.34,137.23,8.2642]
[1763388486883,3.25,137.38,137.24,1.7]
[1763388487379,3.25,137.38,137.3,0.05320634]
[1763388487380,0.05147133,137.32,137.3,0.05320634]
[1763388487579,3.30274677,137.32,137.3,0.05320634]
[1763388487769,0.05274677,137.32,137.3,0.05320634]
[1763388489582,3.30274677,137.32,137.3,0.05320634]
[1763388490081,4.71,137.31,137.19,20.74027102]
[1763388490288,3.25,137.3,137.19,1.7]
[1763388490971,0.05174005,137.26,137.23,0.0493532]
[1763388491172,3.30174005,137.26,137.23,0.0493532]
[1763388492085,0.05174005,137.26,137.23,0.0493532]
[1763388492774,3.25,137.31,137.23,3.2093532]
[1763388492972,3.25,137.31,137.23,1.7493532]
[1763388493372,3.25,137.31,137.23,0.0493532]
[1763388493586,3.25,137.29,137.14,1.7]
[1763388493776,3.25,137.28,137.14,1.7]
[1763388494172,3.25,137.28,137.14,8.2682]
[1763388494377,3.25,137.28,137.17,0.18861]
[1763388494576,0.05052463,137.24,137.21,0.05545844]
[1763388494880,0.05052463,137.24,137.21,1.79545844]
[1763388495278,3.30052463,137.24,137.21,0.05545844]
[1763388497072,0.05052463,137.24,137.21,1.80545844]
[1763388497485,5.00567572,137.31,137.23,1.75]
[1763388497790,3.3,137.36,137.23,8.3139]
[1763388497981,3.3,137.36,137.24,1.75]
[1763388498383,0.04658334,137.31,137.29,0.05447218]
[1763388498588,0.04964347,137.31,137.29,0.05447218]
[1763388498982,3.34964347,137.31,137.29,0.05447218]
[1763388499685,4.76,137.3,137.15,1.75]
[1763388499888,3.3,137.29,137.15,1.75]
[1763388500378,3.3,137.27,137.11,8.3198]
[1763388500579,3.3,137.22,137.21,0.04718501]
[1763388500787,3.3,137.22,137.11,1.75]
[1763388501785,3.3,137.22,137.18,0.05194955]
[1763388503183,0.04871855,137.23,137.18,1.80194955]
[1763388504085,3.34871855,137.23,137.18,0.05194955]
[1763388506387,3.34871855,137.23,137.1,1.75]
[1763388506687,3.3,137.23,137.1,1.75]
[1763388506887,3.3,137.22,137.1,1.75]
[1763388507390,3.3,137.22,137.14,6.5683]
[1763388507596,3.3,137.22,137.15,1.8472776]
[1763388507597,0.05309691,137.17,137.15,1.8472776]
[1763388507800,5.02047887,137.27,137.15,1.8472776]
[1763388508091,3.3,137.26,137.16,6.5671]
[1763388508393,3.3,137.26,137.15,1.8]
[1763388508692,3.3,137.26,137.16,1.8]
[1763388508994,0.05217785,137.22,137.2,0.0510131]
[1763388509601,0.05217785,137.22,137.2,1.8510131]
[1763388509787,3.3,137.3,137.2,1.8510131]
[1763388510093,3.3,137.3,137.16,19.04027102]
[1763388510283,3.3,137.3,137.17,1.8]
[1763388510788,3.35034356,137.25,137.22,0.05488221]
[1763388510993,3.35019753,137.25,137.22,0.05039641]
[1763388512195,3.35019753,137.25,137.22,0.00039641]
[1763388512398,3.35019753,137.25,137.12,20.84027102]
[1763388512588,3.3,137.25,137.13,1.85]
[1763388513094,3.3,137.25,137.09,1.85]
[1763388513397,0.0527456,137.18,137.16,0.05162823]
[1763388513590,3.34835527,137.18,137.16,0.05473582]
[1763388513981,0.04835527,137.18,137.16,0.05473582]
[1763388514592,3.34835527,137.18,137.16,0.05473582]
[1763388515086,0.04835527,137.18,137.16,0.05473582]
[1763388518395,3.34835527,137.18,137.16,0.05473582]
[1763388520007,3.34835527,137.18,137.08,1.85]
[1763388520300,3.34835527,137.18,137.06,7.09719842]
[1763388520301,3.3,137.18,137.06,7.09719842]
[1763388521100,0.05354143,137.13,137.11,0.0554425]
[1763388521301,0.04655857,137.13,137.11,0.0554425]
[1763388522001,0.04655857,137.13,137.11,1.9054425]
[1763388522204,6.35912856,137.21,137.11,1.9054425]
[1763388522205,5.02244296,137.2,137.11,1.9054425]
[1763388522499,3.3,137.21,137.11,8.4198]
[1763388522703,3.3,137.21,137.11,1.85]
[1763388522890,3.3,137.21,137.13,6.5688]
[1763388523089,3.3,137.21,137.13,1.85]
[1763388523294,0.05538772,137.18,137.17,1.85]
[1763388523490,0.05028448,137.19,137.17,1.85]
[1763388523703,6.35912856,137.27,137.17,1.85]
[1763388523704,5.02244296,137.26,137.17,1.85]
[1763388523894,5.02244296,137.26,137.19,1.85]
[1763388524091,5.02244296,137.28,137.2,1.85]
[1763388524397,5.02244296,137.27,137.2,1.85]
[1763388524601,0.05232184,137.25,137.22,1.90384197]
[1763388525797,0.05232184,137.25,137.22,0.05384197]
[1763388525994,8.32244296,137.24,137.22,0.05384197]
[1763388526198,8.32244296,137.23,137.15,7.09719842]
[1763388526399,5.02244296,137.22,137.15,7.09719842]
[1763388526589,5.02244296,137.21,137.15,7.09719842]
[1763388526793,5.02244296,137.22,137.13,8.4188]
[1763388526991,5.02244296,137.21,137.13,8.4188]
[1763388527203,0.05013267,137.18,137.16,0.04873628]
[1763388527402,0.05461397,137.18,137.16,0.04873628]
[1763388528895,3.35461397,137.18,137.16,0.04873628]
[1763388529205,5.02244296,137.17,137.16,0.04873628]
[1763388529601,0.05461397,137.18,137.16,1.89873628]
[1763388530294,0.05461397,137.18,137.16,0.04873628]
[1763388531306,0.05461397,137.18,137.16,1.89873628]
[1763388532198,5.02244296,137.23,137.16,1.89873628]
[1763388532504,5.02244296,137.25,137.16,1.89873628]
[1763388532699,5.02244296,137.24,137.16,1.85]
[1763388532897,5.02244296,137.23,137.16,1.85]
[1763388533097,5.02244296,137.22,137.13,14.20101908]
[1763388533298,0.04734836,137.21,137.18,1.90001281]
[1763388534098,72.56,137.34,137.2,1.85]
[1763388534099,5.02244296,137.27,137.2,1.85]
[1763388534306,5.02244296,137.29,137.26,1.85]
[1763388534503,5.02244296,137.35,137.26,1.85]
[1763388534705,5.02244296,137.35,137.27,1.85]
[1763388534903,5.02244296,137.37,137.29,8.4111]
[1763388535104,5.02244296,137.36,137.29,1.85]
[1763388535305,0.05248674,137.32,137.3,1.89694674]
[1763388535498,3.3,137.38,137.3,1.89694674]
[1763388535800,3.3,137.38,137.3,8.45754674]
[1763388536396,3.3,137.38,137.3,1.89694674]
[1763388536707,0.04969072,137.35,137.3,1.89694674]
[1763388540203,3.16969072,137.35,137.3,0.04694674]
[1763388541606,0.04969072,137.35,137.3,1.89694674]
[1763388542010,3.16969072,137.35,137.3,0.04694674]
[1763388542914,0.04969072,137.35,137.3,1.89694674]
[1763388543507,5.02244296,137.45,137.32,1.85]
[1763388543700,3.12,137.47,137.4,6.5559]
[1763388543903,3.12,137.47,137.38,1.85]
[1763388544304,0.04702702,137.44,137.41,0.05025009]
[1763388545509,3.12,137.42,137.28,1.9]
[1763388546001,3.12,137.42,137.32,1.9]
[1763388546200,3.12,137.42,137.28,1.9]
[1763388546413,0.05408591,137.36,137.34,0.0472154]
[1763388546712,3.16695183,137.36,137.34,0.0472154]
[1763388546903,0.04695183,137.36,137.34,0.0472154]
[1763388548310,5.07770576,137.45,137.34,3.4072154]
[1763388548509,3.12,137.46,137.36,8.4577]
[1763388549108,3.12,137.46,137.28,33.06698319]
[1763388549109,3.12,137.46,137.32,1.9]
[1763388549314,0.04697112,137.4,137.38,0.05178027]
[1763388549507,0.05279348,137.4,137.38,0.04779953]
[1763388549810,3.17279348,137.4,137.38,0.04779953]
[1763388550011,3.12,137.39,137.28,1.9]
[1763388550213,3.12,137.39,137.29,6.5611]
[1763388550410,3.12,137.39,137.29,1.9]
[1763388550715,3.12,137.39,137.27,8.4621]
[1763388551013,0.05538163,137.34,137.32,0.05328032]
[1763388551215,0.04870014,137.34,137.32,0.05328032]
[1763388552014,3.16870014,137.34,137.32,0.05328032]
[1763388552412,3.16870014,137.34,137.22,1.9]
[1763388552607,3.12,137.33,137.22,1.9]
[1763388553307,3.12,137.33,137.23,1.9]
[1763388553615,3.12,137.28,137.26,0.05064922]
[1763388553813,3.17227139,137.28,137.26,0.05312581]
[1763388554114,3.12,137.27,137.19,1.9]
[1763388554917,3.12,137.27,137.14,89.38]
[1763388555112,3.17304858,137.22,137.19,0.05434518]
[1763388555413,3.17304858,137.22,137.19,0.05322373]
[1763388555414,3.16761405,137.22,137.19,0.05322373]
[1763388555811,0.04761405,137.22,137.19,0.05322373]
[1763388556203,3.27761405,137.22,137.19,0.05322373]
[1763388556805,3.27761405,137.22,137.08,33.06698319]
[1763388556806,3.23,137.21,137.09,1.88]
[1763388557709,3.23,137.21,137.05,14.23496972]
[1763388558013,5.07770576,137.22,137.12,0.05107581]
[1763388558014,0.04663928,137.14,137.12,0.05107581]
[1763388558309,0.04663928,137.14,137.12,0.0554355]
[1763388558310,0.0510962,137.14,137.12,0.0554355]
[1763388559511,0.0510962,137.14,137.12,1.9354355]
[1763388559814,6.35912856,137.28,137.13,1.88]
[1763388559815,3.23,137.25,137.13,1.88]
[1763388560014,3.23,137.24,137.13,1.88]
[1763388560614,0.04763098,137.2,137.17,0.04650603]
[1763388561512,3.27763098,137.2,137.08,14.23496972]
[1763388561717,3.23,137.2,137.09,1.88]
[1763388562109,8.26891462,137.24,137.11,1.88]
[1763388562416,3.23,137.24,137.12,1.88]
[1763388562618,3.23,137.18,137.12,1.88]
[1763388563003,3.23,137.18,137.14,0.04640242]
[1763388564216,3.23,137.18,137.04,14.23496972]
[1763388564415,3.23,137.18,137.05,1.88]
[1763388565323,0.05515632,137.13,137.1,0.04757276]
[1763388566010,0.05515632,137.13,137.1,1.92757276]
[1763388567717,0.05515632,137.13,137.1,0.04757276]
[1763388567918,3.14515632,137.13,137.1,0.04757276]
[1763388568121,0.05515632,137.13,137.1,0.04757276]
[1763388568425,0.05515632,137.13,137.1,1.95757276]
[1763388569020,3.09,137.21,137.11,1.91]
[1763388569417,3.09,137.21,137.07,14.26496972]
[1763388569619,3.09,137.21,137.08,1.91]
[1763388570012,0.05399083,137.16,137.13,0.04792803]
[1763388570218,3.13814653,137.16,137.13,0.05423319]
[1763388570625,3.13814653,137.16,137.04,14.26496972]
[1763388570922,8.11542505,137.2,137.05,1.91]
[1763388571220,3.09,137.23,137.11,1.91]
[1763388571621,0.05569028,137.18,137.16,0.04593137]
[1763388571827,0.05507921,137.18,137.16,0.04593137]
[1763388573415,0.05507921,137.18,137.16,1.95593137]
[1763388573624,68.8,137.31,137.16,1.95593137]
[1763388573625,3.09,137.33,137.18,1.91]
[1763388573818,3.09,137.33,137.2,1.91]
[1763388574018,5.02642075,137.36,137.25,1.91]
[1763388574218,3.09,137.37,137.26,1.91]
[1763388574618,3.09,137.32,137.3,0.05251686]
[1763388574814,3.09,137.32,137.22,14.26496972]
[1763388574815,3.09,137.32,137.22,1.91]
[1763388575925,0.05239047,137.28,137.26,0.05067628]
[1763388577730,0.05239047,137.28,137.26,1.96067628]
[1763388578220,0.05239047,137.28,137.26,0.05067628]
[1763388579127,3.14239047,137.28,137.26,0.05067628]
[1763388579923,0.05239047,137.28,137.26,0.05067628]
[1763388580927,3.14239047,137.28,137.26,0.05067628]
[1763388581730,0.05239047,137.28,137.26,0.05067628]
[1763388583338,3.14239047,137.28,137.26,0.05067628]
[1763388583837,3.09,137.27,137.17,1.91]
[1763388584031,12.35496972,137.31,137.13,12.35496972]
[1763388584032,3.09,137.26,137.14,1.91]
[1763388584232,3.09,137.26,137.15,6.5678]
[1763388584537,3.09,137.26,137.15,1.91]
[1763388584833,3.13748417,137.22,137.19,0.04476412]
[1763388585027,3.14539539,137.22,137.11,1.91]
[1763388585229,3.09,137.22,137.11,1.91]
[1763388585634,3.09,137.22,137.12,1.91]
[1763388586129,0.04829142,137.18,137.12,1.91]
[1763388586330,3.09,137.28,137.16,1.86]
[1763388586830,3.09,137.28,137.16,8.94975097]
[1763388587034,3.09,137.28,137.17,1.86]
[1763388587438,0.05260103,137.24,137.21,0.04829142]
[1763388587931,0.05260103,137.24,137.21,1.90829142]
[1763388589528,3.09,137.33,137.22,8.94975097]
[1763388589725,3.09,137.33,137.24,1.86]
[1763388590135,3.09,137.37,137.26,1.86]
[1763388590540,0.05541886,137.33,137.3,0.04739416]
[1763388591833,3.14541886,137.33,137.3,0.04739416]
[1763388595546,0.05541886,137.33,137.3,0.04739416]
[1763388595736,3.14541886,137.33,137.3,0.04739416]
[1763388597838,0.05541886,137.33,137.3,0.04739416]
[1763388598042,0.05541886,137.33,137.3,1.89739416]
[1763388599845,0.05541886,137.33,137.3,0.04739416]
[1763388600234,3.17541886,137.33,137.3,0.04739416]
[1763388600434,0.05541886,137.33,137.3,1.89739416]
[1763388600839,0.05541886,137.33,137.3,0.04739416]
[1763388601160,3.17541886,137.33,137.3,0.04739416]
[1763388601352,3.12,137.31,137.2,7.08975097]
[1763388601645,3.12,137.31,137.18,1.9]
[1763388601835,3.12,137.31,137.21,1.9]
[1763388602036,3.12,137.31,137.18,1.9]
[1763388602241,5.03694339,137.32,137.18,1.9]
[1763388602242,3.17114916,137.26,137.23,0.05295176]
[1763388602443,3.12,137.25,137.23,0.05349829]
[1763388602946,0.04590964,137.26,137.23,0.05349829]
[1763388603152,3.16590964,137.26,137.23,0.05349829]
[1763388604834,0.04590964,137.26,137.23,1.95349829]
[1763388605139,0.04590964,137.26,137.23,0.05349829]
[1763388605340,3.16590964,137.26,137.23,0.05349829]
[1763388606141,3.12,137.25,137.15,1.9]
[1763388606546,3.12,137.23,137.11,1.9]
[1763388606937,3.12,137.23,137.1,94.58975097]
[1763388606938,3.12,137.23,137.12,1.9]
[1763388607142,0.05191634,137.19,137.12,1.9]
[1763388607346,3.17191634,137.19,137.1,7.08975097]
[1763388607545,0.0560191,137.16,137.09,1.9]
[1763388607744,0.05118204,137.14,137.09,1.9]
[1763388608142,15.24669436,137.23,137.11,1.9]
[1763388608343,5.03694339,137.22,137.11,1.9]
[1763388608655,3.12,137.21,137.11,1.9]
[1763388609257,3.16780213,137.17,137.15,0.05118204]
[1763388609546,0.04797683,137.17,137.15,0.05118204]
[1763388609940,3.16797683,137.17,137.15,0.05118204]
[1763388610553,3.16797683,137.17,137.07,8.98975097]
[1763388610744,3.12,137.17,137.07,8.98975097]
[1763388611148,3.12,137.19,137.08,1.9]
[1763388611352,5.03694339,137.21,137.11,1.9]
[1763388611538,3.12,137.23,137.11,1.9]
[1763388611539,0.05565723,137.17,137.11,1.9]
[1763388613151,0.05565723,137.17,137.08,1.9]
[1763388613450,0.05263542,137.14,137.08,1.9]
[1763388613951,0.05263542,137.14,137.04,8.98975097]
[1763388614152,0.04748432,137.1,137.04,8.98975097]
[1763388614350,0.04748432,137.1,137.05,1.9]
[1763388615755,3.16748432,137.1,137.02,7.08975097]
[1763388615950,3.16748432,137.1,137.01,1.9]
[1763388616162,0.05301297,137.07,137.01,1.9]
[1763388616446,0.05301297,137.07,137.03,1.9]
[1763388616753,0.05452097,137.06,137.03,1.9]
[1763388616958,0.05156605,137.06,137.03,1.9]
[1763388617842,0.05156605,137.06,137.02,7.08975097]
[1763388617843,3.12,137.15,137.04,1.9]
[1763388618153,3.12,137.15,137.06,1.9]
[1763388618352,3.12,137.19,137.09,1.9]
[1763388618550,54.83,137.3,137.09,1.9]
[1763388618551,3.12,137.23,137.09,1.9]
[1763388618849,7.08975097,137.21,137.09,1.9]
[1763388619052,3.17498279,137.17,137.15,0.05156605]
[1763388619254,0.05498279,137.17,137.15,0.05156605]
[1763388619554,0.05498279,137.17,137.15,1.95156605]
[1763388619757,3.12,137.22,137.15,1.95156605]
[1763388620053,3.12,137.26,137.15,1.95156605]
[1763388620250,3.12,137.26,137.15,1.9]
[1763388620755,0.05437143,137.22,137.19,1.95484766]
[1763388622345,8.26332398,137.3,137.2,1.9]
[1763388622646,3.21,137.3,137.2,1.9]
[1763388623057,3.21,137.3,137.17,1.9]
[1763388623350,3.21,137.3,137.22,0.05442714]
[1763388623554,0.05285502,137.25,137.22,0.05442714]
[1763388624548,3.26285502,137.25,137.22,0.05442714]
[1763388626362,3.21,137.24,137.13,8.98975097]
[1763388626569,3.21,137.24,137.14,1.9]
[1763388627257,0.05290389,137.2,137.18,0.04612297]
[1763388627458,3.2,137.28,137.19,1.9]
[1763388627658,3.2,137.28,137.13,7.08975097]
[1763388627659,3.2,137.32,137.22,1.9]
[1763388628562,0.05185083,137.28,137.26,0.04981004]
[1763388629261,3.25185083,137.28,137.26,0.04981004]
[1763388629451,0.05185083,137.28,137.26,0.04981004]
[1763388630556,3.25185083,137.28,137.26,0.04981004]
[1763388631150,0.05185083,137.28,137.26,0.04981004]
[1763388632064,3.25185083,137.28,137.26,0.04981004]
[1763388632555,0.05185083,137.28,137.26,0.04981004]
[1763388632753,3.25185083,137.28,137.26,0.04981004]
[1763388632954,0.05185083,137.28,137.26,0.04981004]
[1763388633557,3.25185083,137.28,137.26,0.04981004]
[1763388634149,3.2,137.27,137.16,1.9]
[1763388634350,5.06185787,137.29,137.2,1.95]
[1763388634556,3.2,137.31,137.2,1.95]
[1763388635264,3.25546165,137.27,137.24,0.05519544]
[1763388635470,3.25069102,137.27,137.24,0.05343289]
[1763388635754,0.05069102,137.27,137.24,0.05343289]
[1763388636353,0.05069102,137.27,137.24,2.00343289]
[1763388636554,0.05069102,137.27,137.24,0.05343289]
[1763388636764,3.25069102,137.27,137.24,0.05343289]
[1763388636961,0.05069102,137.27,137.24,0.05343289]
[1763388637763,3.25069102,137.27,137.24,0.05343289]
[1763388638158,0.05069102,137.27,137.24,0.05343289]
[1763388638362,3.25069102,137.27,137.24,0.05343289]
[1763388640365,0.05069102,137.27,137.24,0.05343289]
[1763388640667,3.25069102,137.27,137.24,0.05343289]
[1763388642771,0.05069102,137.27,137.24,2.00343289]
[1763388643074,5.06185787,137.35,137.26,1.95]
[1763388643374,3.2,137.37,137.26,1.95]
[1763388643876,0.05499599,137.33,137.3,0.05104954]
[1763388644669,3.25499599,137.33,137.3,0.05104954]
[1763388645171,0.05499599,137.33,137.3,0.05104954]
[1763388645575,3.25499599,137.33,137.3,0.05104954]
[1763388645773,0.05499599,137.33,137.3,0.05104954]
[1763388645978,0.05499599,137.33,137.3,3.46104954]
[1763388646276,3.2,137.41,137.32,1.95]
[1763388646484,3.2,137.45,137.32,1.95]
[1763388646774,3.2,137.44,137.32,1.95]
[1763388646974,3.2,137.44,137.33,1.95]
[1763388647162,3.25341021,137.4,137.37,0.05518348]
[1763388648574,3.25341021,137.4,137.29,1.95]
[1763388648765,3.25341021,137.4,137.27,7.08975097]
[1763388648766,3.2,137.4,137.25,2.01]
[1763388648970,3.2,137.39,137.25,2.01]
[1763388649576,3.2,137.32,137.31,0.05364634]
[1763388649770,3.2,137.32,137.3,0.04824696]
[1763388649968,3.2,137.39,137.25,2.01]
[1763388650163,0.05176043,137.32,137.3,0.05386439]
[1763388650370,0.05406253,137.32,137.3,2.06532441]
[1763388650678,0.05406253,137.32,137.31,2.01]
[1763388650872,3.2,137.41,137.31,2.01]
[1763388651969,0.0510979,137.37,137.35,0.05213539]
[1763388652781,0.0510979,137.37,137.35,2.06213539]
[1763388653476,0.0510979,137.37,137.35,0.05213539]
[1763388653686,3.2510979,137.37,137.35,0.05213539]
[1763388653882,0.0510979,137.37,137.35,0.05213539]
[1763388654975,0.0510979,137.37,137.35,2.06213539]
[1763388657179,0.0510979,137.37,137.35,0.05213539]
[1763388658481,0.0510979,137.37,137.35,2.06213539]
[1763388659581,3.15,137.45,137.36,2.01]
[1763388659894,3.15,137.45,137.32,2.01]
[1763388660074,3.15,137.45,137.34,2.01]
[1763388660591,0.05205118,137.41,137.38,0.05393137]
[1763388660789,3.20316419,137.41,137.38,0.04910371]
[1763388662393,3.15,137.4,137.27,12.32594118]
[1763388662794,3.15,137.4,137.25,6.563]
[1763388662999,3.15,137.39,137.21,78.66]
[1763388663291,3.15,137.39,137.18,13.1329]
[1763388663292,3.15,137.37,137.23,6.5641]
[1763388663498,0.05195859,137.31,137.29,0.05275985]
[1763388663703,3.2036478,137.31,137.19,12.32594118]
[1763388663895,3.15,137.31,137.2,6.5655]
[1763388664402,3.15,137.31,137.17,6.5669]
[1763388664697,0.05352275,137.25,137.16,99.78594118]
[1763388664895,0.04801877,137.22,137.19,0.05158197]
[1763388665092,3.15,137.28,137.19,0.0535959]
[1763388665294,0.05156975,137.25,137.22,0.04746444]
[1763388665502,3.20156975,137.25,137.22,0.04746444]
[1763388666399,0.05156975,137.25,137.22,0.04746444]
[1763388666700,3.20156975,137.25,137.22,0.04746444]
[1763388667801,3.20156975,137.25,137.12,12.36594118]
[1763388667998,3.15,137.25,137.12,0.04]
[1763388668195,3.15,137.24,137.12,0.04]
[1763388668902,0.0558666,137.19,137.17,0.05548923]
[1763388669103,3.20253005,137.19,137.17,0.05548923]
[1763388669603,0.05253005,137.19,137.17,0.05548923]
[1763388670597,3.20253005,137.19,137.17,0.05548923]
[1763388671090,0.05253005,137.19,137.17,0.05548923]
[1763388671294,3.20253005,137.19,137.17,0.05548923]
[1763388672407,0.05253005,137.19,137.17,0.05548923]
[1763388672702,3.20253005,137.19,137.17,0.05548923]
[1763388673297,3.20253005,137.19,137.01,189.7086]
[1763388673298,3.20253005,137.19,137.08,0.04]
[1763388673503,3.15,137.19,137.08,0.04]
[1763388674098,3.15,137.19,137.09,0.04]
[1763388674606,3.19879178,137.15,137.13,0.0540339]
[1763388674804,3.20534084,137.15,137.13,0.05153384]
[1763388675198,3.20534084,137.15,137.05,0.04]
[1763388675498,3.15,137.15,137.05,0.04]
[1763388676105,0.0533836,137.11,137.05,0.04]
[1763388680599,0.0533836,137.11,137.07,0.05]
[1763388681402,3.32,137.2,137.08,0.10603381]
[1763388681604,3.32,137.2,137.08,0.05]
[1763388681803,3.32,137.24,137.12,0.05]
[1763388682402,0.05505266,137.19,137.17,0.04875769]
[1763388682700,3.36619538,137.19,137.17,0.04875769]
[1763388683502,0.04619538,137.19,137.17,0.09875769]
[1763388683709,0.04619538,137.19,137.18,0.05]
[1763388683911,3.32,137.27,137.18,0.05]
[1763388684913,3.36755332,137.24,137.21,0.05472649]
[1763388685205,3.36777814,137.24,137.21,0.05376137]
[1763388686802,0.04777814,137.24,137.21,0.05376137]
[1763388687203,3.36777814,137.24,137.21,0.05376137]
[1763388690413,0.04777814,137.24,137.21,0.05376137]
[1763388691408,0.04777814,137.24,137.22,0.04]
[1763388691612,0.04777814,137.24,137.21,0.05376137]
[1763388691919,3.42777814,137.24,137.21,0.05376137]
[1763388697415,3.38,137.23,137.11,0.09]
[1763388697603,3.38,137.23,137.07,0.09]
[1763388697808,3.38,137.2,137.07,0.09]
[1763388698020,3.38,137.19,137.07,0.09]
[1763388698219,0.05045265,137.14,137.12,0.05471748]
[1763388698415,0.04819972,137.14,137.12,0.05210231]
[1763388698812,3.42819972,137.14,137.12,0.05210231]
[1763388699516,0.04819972,137.14,137.12,0.05210231]
[1763388701518,3.42819972,137.14,137.12,0.05210231]
[1763388703220,0.04819972,137.14,137.12,0.05210231]
[1763388703727,3.42819972,137.14,137.12,0.05210231]
[1763388704427,0.04819972,137.14,137.12,0.05210231]
[1763388704818,0.04819972,137.14,137.12,0.14210231]
[1763388705020,3.38,137.21,137.13,0.09]
[1763388705616,3.38,137.24,137.15,0.09]
[1763388705821,8.42378134,137.27,137.15,0.09]
[1763388706022,0.04909225,137.22,137.2,0.14604387]
[1763388706325,3.38,137.27,137.21,0.09]
[1763388706527,3.38,137.27,137.2,0.05604387]
[1763388707431,3.43391681,137.25,137.2,0.05604387]
[1763388707627,3.43391681,137.25,137.17,6.6567]
[1763388707628,3.43391681,137.25,137.21,0.05355841]
[1763388714324,0.05391681,137.25,137.22,0.09]
[1763388714534,0.05391681,137.25,137.21,0.05355841]
[1763388714933,0.05391681,137.25,137.21,0.14355841]
[1763388716140,3.43391681,137.25,137.21,0.14355841]
[1763388716528,3.43391681,137.25,137.21,0.05355841]
[1763388717738,3.43391681,137.25,137.21,0.15355841]
[1763388717948,0.05391681,137.25,137.21,0.15355841]
[1763388719837,3.44391681,137.25,137.21,0.05355841]
[1763388720847,3.44391681,137.25,137.12,7.09026238]
[1763388721048,3.39,137.23,137.12,7.09026238]
[1763388721237,3.39,137.22,137.12,7.09026238]
[1763388721543,7.09026238,137.24,137.09,7.09026238]
[1763388721544,3.39,137.2,137.09,7.09026238]
[1763388721745,3.39,137.19,137.07,0.15]
[1763388722048,3.4427882,137.14,137.12,0.05393888]
[1763388722340,0.05446677,137.14,137.12,0.05393888]
[1763388722541,0.05446677,137.14,137.13,0.15]
[1763388722945,0.05446677,137.14,137.12,0.05393888]
[1763388723140,0.05446677,137.14,137.12,0.20393888]
[1763388723536,3.44446677,137.14,137.12,0.05393888]
[1763388723736,3.44446677,137.14,137.03,7.09026238]
[1763388723941,3.39,137.13,137.02,0.15]